[Event "Titled Tuesday Blitz May 30 Early 2023"]
[White "Pham, Le Thao Nguyen"]
[Black "Pg, Mohd Omar Ak Hira"]
[WhiteFideId "12401226"]
[BlackFideId "10500103"]
[WhiteElo "2286"]
[BlackElo "2167"]
[Result "1-0"]
[Round "03"]
[TimeControl "180+2"]
[Date "2023.05.30"]
[WhiteClock "0:00:44"]
[BlackClock "0:00:04"]

1. d4 {[%clk 0:03:00]}  d5 {[%clk 0:02:59]} 2. Nf3 {[%clk 0:03:00]}  Bf5 {[%clk 0:02:57]} 3. c4 {[%clk 0:02:58]}  e6 {[%clk 0:02:52]} 4. Qb3 {[%clk 0:02:54]}  dxc4 {[%clk 0:02:44]} 5. Qxb7 {[%clk 0:02:39]}  Qd5 {[%clk 0:02:44]} 6. Qc8+ {[%clk 0:02:24]}  Qd8 {[%clk 0:02:37]} 7. Qxd8+ {[%clk 0:02:23]}  Kxd8 {[%clk 0:02:37]} 8. Nc3 {[%clk 0:02:23]}  Nf6 {[%clk 0:02:24]} 9. Ne5 {[%clk 0:02:22]}  Ke8 {[%clk 0:02:16]} 10. e3 {[%clk 0:02:18]}  Nbd7 {[%clk 0:02:13]} 11. Nxc4 {[%clk 0:02:08]}  Bg6 {[%clk 0:01:52]} 12. Be2 {[%clk 0:02:02]}  Rb8 {[%clk 0:01:35]} 13. O-O {[%clk 0:02:00]}  Bd6 {[%clk 0:01:16]} 14. b3 {[%clk 0:01:49]}  Ke7 {[%clk 0:01:16]} 15. Nxd6 {[%clk 0:01:37]}  cxd6 {[%clk 0:01:11]} 16. Ba3 {[%clk 0:01:38]}  Ne4 {[%clk 0:01:00]} 17. Rfc1 {[%clk 0:01:33]}  Rhc8 {[%clk 0:00:58]} 18. Nb5 {[%clk 0:01:27]}  a6 {[%clk 0:00:51]} 19. Na7 {[%clk 0:01:25]}  Rxc1+ {[%clk 0:00:35]} 20. Rxc1 {[%clk 0:01:23]}  Rb7 {[%clk 0:00:19]} 21. Nc8+ {[%clk 0:01:18]}  Kd8 {[%clk 0:00:15]} 22. Nxd6 {[%clk 0:01:07]}  Rc7 {[%clk 0:00:12]} 23. Rxc7 {[%clk 0:00:59]}  Kxc7 {[%clk 0:00:13]} 24. Nxe4 {[%clk 0:01:00]}  Bxe4 {[%clk 0:00:13]} 25. Bxa6 {[%clk 0:01:01]}  Bb1 {[%clk 0:00:12]} 26. Bc5 {[%clk 0:00:53]}  Bxa2 {[%clk 0:00:12]} 27. b4 {[%clk 0:00:53]}  Bd5 {[%clk 0:00:11]} 28. f3 {[%clk 0:00:53]}  Bb7 {[%clk 0:00:11]} 29. Bd3 {[%clk 0:00:52]}  Nf6 {[%clk 0:00:09]} 30. Kf2 {[%clk 0:00:50]}  h6 {[%clk 0:00:10]} 31. e4 {[%clk 0:00:48]}  Nd7 {[%clk 0:00:09]} 32. Ke3 {[%clk 0:00:49]}  Nb8 {[%clk 0:00:10]} 33. Bb5 {[%clk 0:00:45]}  h5 {[%clk 0:00:04]} 34. Be8 {[%clk 0:00:44]} 1-0


[Site "https://www.chess.com"]

[Event "Titled Tuesday Blitz May 30 Early 2023"]
[White "Sailer, Mike"]
[Black "Trifan, Andrei Ioan"]
[WhiteFideId "2012901"]
[BlackFideId "12967068"]
[WhiteElo "2109"]
[BlackElo "2208"]
[Result "0-1"]
[Round "03"]
[TimeControl "180+2"]
[Date "2023.05.30"]
[WhiteClock "0:00:05"]
[BlackClock "0:00:34"]

1. d4 {[%clk 0:03:00]}  b6 {[%clk 0:03:00]} 2. Bf4 {[%clk 0:02:59]}  Bb7 {[%clk 0:03:01]} 3. e3 {[%clk 0:03:00]}  Nf6 {[%clk 0:03:01]} 4. Nf3 {[%clk 0:03:01]}  e6 {[%clk 0:03:01]} 5. Be2 {[%clk 0:03:01]}  Be7 {[%clk 0:03:02]} 6. O-O {[%clk 0:03:02]}  O-O {[%clk 0:03:02]} 7. c4 {[%clk 0:03:03]}  d5 {[%clk 0:03:03]} 8. h3 {[%clk 0:03:03]}  c5 {[%clk 0:03:03]} 9. cxd5 {[%clk 0:03:03]}  Nxd5 {[%clk 0:03:04]} 10. Bh2 {[%clk 0:03:03]}  Nc6 {[%clk 0:03:04]} 11. Nc3 {[%clk 0:03:01]}  Bf6 {[%clk 0:03:04]} 12. Nxd5 {[%clk 0:03:01]}  Qxd5 {[%clk 0:03:05]} 13. dxc5 {[%clk 0:02:56]}  Qxc5 {[%clk 0:03:04]} 14. Rc1 {[%clk 0:02:55]}  Qa5 {[%clk 0:03:04]} 15. Qb3 {[%clk 0:02:50]}  Ne5 {[%clk 0:03:00]} 16. Nxe5 {[%clk 0:02:38]}  Bxe5 {[%clk 0:03:01]} 17. Bxe5 {[%clk 0:02:36]}  Qxe5 {[%clk 0:03:02]} 18. Qc3 {[%clk 0:02:28]}  Qg5 {[%clk 0:02:58]} 19. f3 {[%clk 0:02:04]}  Rac8 {[%clk 0:02:57]} 20. Qa3 {[%clk 0:01:55]}  h6 {[%clk 0:02:46]} 21. Rfd1 {[%clk 0:01:48]}  Rfd8 {[%clk 0:02:42]} 22. Rxc8 {[%clk 0:01:41]}  Rxc8 {[%clk 0:02:40]} 23. Qd3 {[%clk 0:01:36]}  Qe5 {[%clk 0:02:22]} 24. Qd2 {[%clk 0:01:24]}  Qc5 {[%clk 0:02:17]} 25. Kh1 {[%clk 0:01:19]}  Qc2 {[%clk 0:02:15]} 26. e4 {[%clk 0:01:19]}  Kh7 {[%clk 0:02:02]} 27. Kh2 {[%clk 0:00:58]}  Qc7+ {[%clk 0:01:51]} 28. Kh1 {[%clk 0:00:57]}  Qc2 {[%clk 0:01:50]} 29. Kh2 {[%clk 0:00:57]}  Rc5 {[%clk 0:01:43]} 30. Bd3 {[%clk 0:00:49]}  Qxd2 {[%clk 0:01:40]} 31. Rxd2 {[%clk 0:00:49]}  e5 {[%clk 0:01:40]} 32. b3 {[%clk 0:00:43]}  Kg6 {[%clk 0:01:25]} 33. Bc4 {[%clk 0:00:43]}  b5 {[%clk 0:01:25]} 34. Rd6+ {[%clk 0:00:28]}  f6 {[%clk 0:01:24]} 35. Be6 {[%clk 0:00:27]}  b4 {[%clk 0:01:11]} 36. Bc4 {[%clk 0:00:25]}  Rc7 {[%clk 0:01:06]} 37. Kg3 {[%clk 0:00:23]}  a5 {[%clk 0:01:06]} 38. Kf2 {[%clk 0:00:22]}  a4 {[%clk 0:01:05]} 39. g3 {[%clk 0:00:20]}  Bc8 {[%clk 0:01:01]} 40. h4 {[%clk 0:00:19]}  axb3 {[%clk 0:00:59]} 41. axb3 {[%clk 0:00:19]}  Ra7 {[%clk 0:00:57]} 42. Rb6 {[%clk 0:00:19]}  Rb7 {[%clk 0:00:56]} 43. Rc6 {[%clk 0:00:16]}  Bd7 {[%clk 0:00:57]} 44. Rd6 {[%clk 0:00:16]}  Be8 {[%clk 0:00:57]} 45. Ke3 {[%clk 0:00:15]}  Bf7 {[%clk 0:00:56]} 46. Bxf7+ {[%clk 0:00:14]}  Kxf7 {[%clk 0:00:57]} 47. f4 {[%clk 0:00:14]}  Rc7 {[%clk 0:00:57]} 48. Rd3 {[%clk 0:00:13]}  exf4+ {[%clk 0:00:53]} 49. gxf4 {[%clk 0:00:13]}  Ke6 {[%clk 0:00:53]} 50. Kd2 {[%clk 0:00:11]}  g5 {[%clk 0:00:50]} 51. fxg5 {[%clk 0:00:10]}  hxg5 {[%clk 0:00:51]} 52. hxg5 {[%clk 0:00:11]}  fxg5 {[%clk 0:00:52]} 53. Rd4 {[%clk 0:00:12]}  Ke5 {[%clk 0:00:40]} 54. Rxb4 {[%clk 0:00:12]}  g4 {[%clk 0:00:41]} 55. Rc4 {[%clk 0:00:09]}  Rf7 {[%clk 0:00:37]} 56. Ke2 {[%clk 0:00:09]}  g3 {[%clk 0:00:37]} 57. Rc1 {[%clk 0:00:10]}  Kxe4 {[%clk 0:00:37]} 58. b4 {[%clk 0:00:09]}  Rf2+ {[%clk 0:00:36]} 59. Ke1 {[%clk 0:00:06]}  Rh2 {[%clk 0:00:34]} 60. Rc4+ {[%clk 0:00:05]}  Kd3 {[%clk 0:00:34]} 61. Rg4 {[%clk 0:00:05]}  Rh1# {[%clk 0:00:34]} 0-1


[Site "https://www.chess.com"]

[Event "Titled Tuesday Blitz May 30 Early 2023"]
[White "Fiedorek, Michal"]
[Black "Borodavkin, Anatoly"]
[WhiteFideId "1199528"]
[BlackFideId "14150662"]
[WhiteElo "2135"]
[BlackElo "1991"]
[Result "1-0"]
[Round "03"]
[TimeControl "180+2"]
[Date "2023.05.30"]
[WhiteClock "0:00:08"]
[BlackClock "0:00:08"]

1. e4 {[%clk 0:03:00]}  e5 {[%clk 0:02:59]} 2. Nf3 {[%clk 0:03:00]}  Nf6 {[%clk 0:03:00]} 3. d4 {[%clk 0:02:59]}  Nxe4 {[%clk 0:02:41]} 4. Bd3 {[%clk 0:02:57]}  d5 {[%clk 0:02:31]} 5. dxe5 {[%clk 0:02:46]}  Nc6 {[%clk 0:02:28]} 6. Nc3 {[%clk 0:02:37]}  Bb4 {[%clk 0:02:25]} 7. O-O {[%clk 0:02:37]}  Nxc3 {[%clk 0:02:22]} 8. bxc3 {[%clk 0:02:37]}  Bxc3 {[%clk 0:02:23]} 9. Rb1 {[%clk 0:02:37]}  h6 {[%clk 0:02:01]} 10. Ba3 {[%clk 0:02:29]}  Ne7 {[%clk 0:01:50]} 11. Rb3 {[%clk 0:01:39]}  d4 {[%clk 0:01:23]} 12. Qe2 {[%clk 0:01:19]}  O-O {[%clk 0:01:19]} 13. Nh4 {[%clk 0:00:43]}  Re8 {[%clk 0:01:05]} 14. Qe4 {[%clk 0:00:39]}  g6 {[%clk 0:00:44]} 15. Qf4 {[%clk 0:00:30]}  Nf5 {[%clk 0:00:24]} 16. Nxf5 {[%clk 0:00:28]}  Bxf5 {[%clk 0:00:24]} 17. Bxf5 {[%clk 0:00:26]}  gxf5 {[%clk 0:00:22]} 18. Qxh6 {[%clk 0:00:20]}  Re6 {[%clk 0:00:21]} 19. Qf4 {[%clk 0:00:20]}  Rg6 {[%clk 0:00:18]} 20. Bb4 {[%clk 0:00:17]}  Bxb4 {[%clk 0:00:16]} 21. Rxb4 {[%clk 0:00:17]}  b6 {[%clk 0:00:15]} 22. Rxd4 {[%clk 0:00:17]}  Qe7 {[%clk 0:00:14]} 23. Rd3 {[%clk 0:00:16]}  Rg4 {[%clk 0:00:13]} 24. Qf3 {[%clk 0:00:15]}  Qg5 {[%clk 0:00:12]} 25. Qxa8+ {[%clk 0:00:13]}  Kg7 {[%clk 0:00:12]} 26. Rg3 {[%clk 0:00:12]}  Rxg3 {[%clk 0:00:12]} 27. fxg3 {[%clk 0:00:12]}  Qe3+ {[%clk 0:00:11]} 28. Kh1 {[%clk 0:00:12]}  Qxe5 {[%clk 0:00:12]} 29. Qf3 {[%clk 0:00:12]}  Qb2 {[%clk 0:00:11]} 30. Qxf5 {[%clk 0:00:12]}  Qxa2 {[%clk 0:00:11]} 31. Qg5+ {[%clk 0:00:11]}  Kf8 {[%clk 0:00:10]} 32. h4 {[%clk 0:00:10]}  a5 {[%clk 0:00:10]} 33. h5 {[%clk 0:00:09]}  Qb2 {[%clk 0:00:09]} 34. Qf6 {[%clk 0:00:07]}  Qxf6 {[%clk 0:00:08]} 35. Rxf6 {[%clk 0:00:07]}  a4 {[%clk 0:00:07]} 36. Rf4 {[%clk 0:00:05]}  b5 {[%clk 0:00:06]} 37. Rb4 {[%clk 0:00:04]}  c6 {[%clk 0:00:05]} 38. h6 {[%clk 0:00:03]}  Kg8 {[%clk 0:00:05]} 39. Kg1 {[%clk 0:00:03]}  Kh7 {[%clk 0:00:05]} 40. Kf2 {[%clk 0:00:03]}  Kxh6 {[%clk 0:00:06]} 41. Ke3 {[%clk 0:00:03]}  Kg6 {[%clk 0:00:06]} 42. Kd4 {[%clk 0:00:04]}  Kf5 {[%clk 0:00:05]} 43. Kc5 {[%clk 0:00:04]}  a3 {[%clk 0:00:06]} 44. Rb1 {[%clk 0:00:04]}  a2 {[%clk 0:00:05]} 45. Ra1 {[%clk 0:00:05]}  b4 {[%clk 0:00:06]} 46. Kxb4 {[%clk 0:00:05]}  Ke4 {[%clk 0:00:06]} 47. Kc5 {[%clk 0:00:05]}  Ke3 {[%clk 0:00:06]} 48. Rxa2 {[%clk 0:00:05]}  Kf2 {[%clk 0:00:07]} 49. Kxc6 {[%clk 0:00:06]}  Kxg2 {[%clk 0:00:07]} 50. Kd6 {[%clk 0:00:06]}  Kxg3 {[%clk 0:00:08]} 51. c4 {[%clk 0:00:06]}  Kf3 {[%clk 0:00:09]} 52. c5 {[%clk 0:00:07]}  Ke4 {[%clk 0:00:09]} 53. c6 {[%clk 0:00:07]}  f5 {[%clk 0:00:09]} 54. c7 {[%clk 0:00:08]}  f4 {[%clk 0:00:08]} 55. c8=Q {[%clk 0:00:08]} 1-0


[Site "https://www.chess.com"]

[Event "Titled Tuesday Blitz May 30 Early 2023"]
[White "Samaganova, Aleksandra"]
[Black "Manukian, Artak"]
[WhiteFideId "13800221"]
[BlackFideId "13301373"]
[WhiteElo "1858"]
[BlackElo "2130"]
[Result "1-0"]
[Round "03"]
[TimeControl "180+2"]
[Date "2023.05.30"]
[WhiteClock "0:00:02"]
[BlackClock "0:00:03"]

1. c4 {[%clk 0:03:00]}  Nf6 {[%clk 0:02:47]} 2. Nc3 {[%clk 0:03:00]}  g6 {[%clk 0:02:46]} 3. g3 {[%clk 0:02:57]}  Bg7 {[%clk 0:02:43]} 4. Bg2 {[%clk 0:02:57]}  c5 {[%clk 0:02:42]} 5. Nf3 {[%clk 0:02:55]}  O-O {[%clk 0:02:42]} 6. O-O {[%clk 0:02:55]}  Nc6 {[%clk 0:02:41]} 7. d3 {[%clk 0:02:54]}  e5 {[%clk 0:02:38]} 8. a3 {[%clk 0:02:53]}  d6 {[%clk 0:02:38]} 9. Rb1 {[%clk 0:02:53]}  a5 {[%clk 0:02:37]} 10. Ne1 {[%clk 0:02:53]}  Bg4 {[%clk 0:02:34]} 11. h3 {[%clk 0:02:53]}  Be6 {[%clk 0:02:32]} 12. Nd5 {[%clk 0:02:51]}  Bxd5 {[%clk 0:02:28]} 13. cxd5 {[%clk 0:02:51]}  Ne7 {[%clk 0:02:29]} 14. e4 {[%clk 0:02:51]}  b5 {[%clk 0:02:28]} 15. Be3 {[%clk 0:02:47]}  a4 {[%clk 0:02:28]} 16. f4 {[%clk 0:02:43]}  Nd7 {[%clk 0:02:26]} 17. Nc2 {[%clk 0:02:30]}  Bh6 {[%clk 0:01:45]} 18. Qd2 {[%clk 0:02:24]}  Kg7 {[%clk 0:01:38]} 19. Rf2 {[%clk 0:02:03]}  Ng8 {[%clk 0:01:37]} 20. Rbf1 {[%clk 0:02:02]}  Qe7 {[%clk 0:01:33]} 21. g4 {[%clk 0:01:43]}  exf4 {[%clk 0:01:31]} 22. Bxf4 {[%clk 0:01:44]}  Bxf4 {[%clk 0:01:31]} 23. Rxf4 {[%clk 0:01:43]}  Ne5 {[%clk 0:01:16]} 24. d4 {[%clk 0:01:37]}  cxd4 {[%clk 0:01:14]} 25. Nxd4 {[%clk 0:01:30]}  Rac8 {[%clk 0:01:01]} 26. Nxb5 {[%clk 0:01:22]}  Rb8 {[%clk 0:00:42]} 27. Nd4 {[%clk 0:01:15]}  Qa7 {[%clk 0:00:42]} 28. Kh1 {[%clk 0:01:09]}  Qb6 {[%clk 0:00:35]} 29. Qf2 {[%clk 0:00:55]}  Rb7 {[%clk 0:00:30]} 30. Ne6+ {[%clk 0:00:48]}  fxe6 {[%clk 0:00:30]} 31. Qxb6 {[%clk 0:00:44]}  Rxb6 {[%clk 0:00:29]} 32. Rxf8 {[%clk 0:00:45]}  exd5 {[%clk 0:00:28]} 33. exd5 {[%clk 0:00:37]}  Rxb2 {[%clk 0:00:26]} 34. Ra8 {[%clk 0:00:36]}  Nc4 {[%clk 0:00:23]} 35. Rxa4 {[%clk 0:00:31]}  Ne3 {[%clk 0:00:23]} 36. Rg1 {[%clk 0:00:31]}  Nf6 {[%clk 0:00:21]} 37. g5 {[%clk 0:00:26]}  Nh5 {[%clk 0:00:20]} 38. Ra7+ {[%clk 0:00:25]}  Kg8 {[%clk 0:00:18]} 39. Ra8+ {[%clk 0:00:11]}  Kf7 {[%clk 0:00:17]} 40. Ra7+ {[%clk 0:00:11]}  Ke8 {[%clk 0:00:17]} 41. Ra8+ {[%clk 0:00:06]}  Kd7 {[%clk 0:00:17]} 42. Ra6 {[%clk 0:00:07]}  Ng3+ {[%clk 0:00:14]} 43. Kh2 {[%clk 0:00:07]}  Ngf1+ {[%clk 0:00:13]} 44. Rxf1 {[%clk 0:00:07]}  Nxf1+ {[%clk 0:00:13]} 45. Kg1 {[%clk 0:00:08]}  Ne3 {[%clk 0:00:13]} 46. Ra7+ {[%clk 0:00:08]}  Kc8 {[%clk 0:00:13]} 47. Be4 {[%clk 0:00:07]}  Rb3 {[%clk 0:00:13]} 48. Rxh7 {[%clk 0:00:06]}  Rxa3 {[%clk 0:00:12]} 49. Bxg6 {[%clk 0:00:07]}  Nxd5 {[%clk 0:00:11]} 50. Bf5+ {[%clk 0:00:05]}  Kb8 {[%clk 0:00:10]} 51. g6 {[%clk 0:00:05]}  Nf4 {[%clk 0:00:07]} 52. Kf2 {[%clk 0:00:03]}  Ra7 {[%clk 0:00:04]} 53. g7 {[%clk 0:00:03]}  Rxg7 {[%clk 0:00:01]} 54. Rxg7 {[%clk 0:00:03]}  Nd5 {[%clk 0:00:02]} 55. Rg8+ {[%clk 0:00:04]}  Kc7 {[%clk 0:00:02]} 56. Rg7+ {[%clk 0:00:04]}  Kb6 {[%clk 0:00:02]} 57. Be4 {[%clk 0:00:04]}  Nf6 {[%clk 0:00:02]} 58. Rb7+ {[%clk 0:00:04]}  Kc5 {[%clk 0:00:02]} 59. Bf3 {[%clk 0:00:05]}  Kd4 {[%clk 0:00:03]} 60. Rb4+ {[%clk 0:00:05]}  Ke5 {[%clk 0:00:03]} 61. h4 {[%clk 0:00:05]}  d5 {[%clk 0:00:04]} 62. Rb5 {[%clk 0:00:04]}  Ke6 {[%clk 0:00:04]} 63. Kg3 {[%clk 0:00:04]}  Nd7 {[%clk 0:00:04]} 64. Rb7 {[%clk 0:00:04]}  Ne5 {[%clk 0:00:04]} 65. Bg4+ {[%clk 0:00:04]}  Kf6 {[%clk 0:00:04]} 66. Rb6+ {[%clk 0:00:04]}  Kg7 {[%clk 0:00:04]} 67. h5 {[%clk 0:00:03]}  Nc4 {[%clk 0:00:03]} 68. Rb7+ {[%clk 0:00:03]}  Kf6 {[%clk 0:00:04]} 69. Ra7 {[%clk 0:00:02]}  Nd2 {[%clk 0:00:03]} 70. Ra6+ {[%clk 0:00:02]}  Kg5 {[%clk 0:00:03]} 71. Rg6# {[%clk 0:00:02]} 1-0


[Site "https://www.chess.com"]

[Event "Titled Tuesday Blitz May 30 Early 2023"]
[White "Acikel, Mert"]
[Black "Jovic, Stanoje"]
[WhiteFideId "12956465"]
[BlackFideId "905020"]
[WhiteElo "2097"]
[BlackElo "2236"]
[Result "0-1"]
[Round "03"]
[TimeControl "180+2"]
[Date "2023.05.30"]
[WhiteClock "0:00:00"]
[BlackClock "0:00:35"]

1. e4 {[%clk 0:03:00]}  c6 {[%clk 0:02:59]} 2. Nc3 {[%clk 0:03:01]}  d5 {[%clk 0:03:00]} 3. Nf3 {[%clk 0:03:01]}  dxe4 {[%clk 0:03:00]} 4. Nxe4 {[%clk 0:03:02]}  Nf6 {[%clk 0:03:00]} 5. Qe2 {[%clk 0:03:02]}  Nxe4 {[%clk 0:02:58]} 6. Qxe4 {[%clk 0:03:03]}  Qd5 {[%clk 0:02:59]} 7. Qh4 {[%clk 0:03:03]}  Bf5 {[%clk 0:02:51]} 8. Bc4 {[%clk 0:03:03]}  Qd6 {[%clk 0:02:34]} 9. d3 {[%clk 0:02:54]}  Nd7 {[%clk 0:02:27]} 10. O-O {[%clk 0:02:52]}  e6 {[%clk 0:02:17]} 11. h3 {[%clk 0:02:41]}  Be7 {[%clk 0:02:13]} 12. Bg5 {[%clk 0:02:33]}  h6 {[%clk 0:02:08]} 13. Bxe7 {[%clk 0:02:31]}  Qxe7 {[%clk 0:02:09]} 14. Qf4 {[%clk 0:02:30]}  O-O {[%clk 0:02:00]} 15. c3 {[%clk 0:02:27]}  b5 {[%clk 0:01:57]} 16. Bb3 {[%clk 0:02:23]}  Bxd3 {[%clk 0:01:55]} 17. Rfd1 {[%clk 0:02:22]}  Nc5 {[%clk 0:01:52]} 18. Ne5 {[%clk 0:02:18]}  Be4 {[%clk 0:01:47]} 19. Rd4 {[%clk 0:02:02]}  Bd5 {[%clk 0:01:42]} 20. Bc2 {[%clk 0:01:57]}  Qg5 {[%clk 0:01:32]} 21. Qxg5 {[%clk 0:01:50]}  hxg5 {[%clk 0:01:32]} 22. b3 {[%clk 0:01:46]}  f6 {[%clk 0:01:20]} 23. Ng6 {[%clk 0:01:39]}  e5 {[%clk 0:01:12]} 24. Nxf8 {[%clk 0:01:18]}  exd4 {[%clk 0:01:12]} 25. cxd4 {[%clk 0:01:17]}  Nb7 {[%clk 0:01:07]} 26. Nd7 {[%clk 0:01:14]}  Rd8 {[%clk 0:01:05]} 27. Nc5 {[%clk 0:01:14]}  Nxc5 {[%clk 0:01:02]} 28. dxc5 {[%clk 0:01:14]}  b4 {[%clk 0:00:58]} 29. Rd1 {[%clk 0:01:03]}  Kf8 {[%clk 0:00:56]} 30. Rd4 {[%clk 0:01:02]}  Rb8 {[%clk 0:00:53]} 31. f3 {[%clk 0:01:01]}  a5 {[%clk 0:00:52]} 32. Kf2 {[%clk 0:00:57]}  Rb5 {[%clk 0:00:51]} 33. Rd2 {[%clk 0:00:48]}  Rxc5 {[%clk 0:00:51]} 34. Re2 {[%clk 0:00:49]}  a4 {[%clk 0:00:47]} 35. Bg6 {[%clk 0:00:33]}  Bf7 {[%clk 0:00:45]} 36. Bxf7 {[%clk 0:00:33]}  Kxf7 {[%clk 0:00:45]} 37. bxa4 {[%clk 0:00:34]}  Ra5 {[%clk 0:00:42]} 38. Rc2 {[%clk 0:00:16]}  c5 {[%clk 0:00:42]} 39. Kg3 {[%clk 0:00:07]}  Ke6 {[%clk 0:00:40]} 40. f4 {[%clk 0:00:05]}  gxf4+ {[%clk 0:00:35]} 41. Kxf4 {[%clk 0:00:05]}  Rxa4 {[%clk 0:00:35]} 42. Rxc5 {[%clk 0:00:00]}  b3+ {[%clk 0:00:35]} 0-1


[Site "https://www.chess.com"]

[Event "Titled Tuesday Blitz May 30 Early 2023"]
[White "Dilmukhametov, Artur"]
[Black "Matveeva, Olga"]
[WhiteFideId "24179922"]
[BlackFideId "24107018"]
[WhiteElo "2242"]
[BlackElo "2009"]
[Result "1-0"]
[Round "03"]
[TimeControl "180+2"]
[Date "2023.05.30"]
[WhiteClock "0:00:09"]
[BlackClock "0:00:00"]

1. e4 {[%clk 0:02:58]}  e6 {[%clk 0:02:59]} 2. Nf3 {[%clk 0:02:58]}  d5 {[%clk 0:02:59]} 3. e5 {[%clk 0:02:58]}  c5 {[%clk 0:02:58]} 4. b4 {[%clk 0:02:58]}  d4 {[%clk 0:02:57]} 5. bxc5 {[%clk 0:02:57]}  Bxc5 {[%clk 0:02:58]} 6. Bb5+ {[%clk 0:02:54]}  Nc6 {[%clk 0:02:56]} 7. O-O {[%clk 0:02:50]}  Ne7 {[%clk 0:02:55]} 8. d3 {[%clk 0:02:48]}  O-O {[%clk 0:02:55]} 9. Bg5 {[%clk 0:02:25]}  Qc7 {[%clk 0:02:52]} 10. Re1 {[%clk 0:02:21]}  Bd7 {[%clk 0:02:44]} 11. Nbd2 {[%clk 0:02:14]}  Nd5 {[%clk 0:02:39]} 12. Ne4 {[%clk 0:02:11]}  Bb4 {[%clk 0:02:32]} 13. Bd2 {[%clk 0:02:04]}  Nxe5 {[%clk 0:02:23]} 14. Nxd4 {[%clk 0:01:57]}  Bxb5 {[%clk 0:01:52]} 15. Nxb5 {[%clk 0:01:56]}  Qa5 {[%clk 0:01:52]} 16. Bxb4 {[%clk 0:01:53]}  Qxb4 {[%clk 0:01:47]} 17. Rb1 {[%clk 0:01:45]}  Qa5 {[%clk 0:01:47]} 18. Nbd6 {[%clk 0:01:43]}  b6 {[%clk 0:01:35]} 19. d4 {[%clk 0:01:16]}  Ng6 {[%clk 0:01:30]} 20. c4 {[%clk 0:01:16]}  Nc3 {[%clk 0:01:13]} 21. Nxc3 {[%clk 0:01:15]}  Qxc3 {[%clk 0:01:14]} 22. Re3 {[%clk 0:01:16]}  Qa5 {[%clk 0:01:12]} 23. a4 {[%clk 0:01:13]}  e5 {[%clk 0:00:52]} 24. d5 {[%clk 0:01:09]}  Qc5 {[%clk 0:00:50]} 25. Nb5 {[%clk 0:00:41]}  Qxc4 {[%clk 0:00:46]} 26. Rc1 {[%clk 0:00:41]}  Qb4 {[%clk 0:00:39]} 27. d6 {[%clk 0:00:41]}  Rfd8 {[%clk 0:00:35]} 28. d7 {[%clk 0:00:41]}  Qe7 {[%clk 0:00:29]} 29. Rc7 {[%clk 0:00:37]}  a6 {[%clk 0:00:27]} 30. Na7 {[%clk 0:00:18]}  Nf4 {[%clk 0:00:09]} 31. Nc6 {[%clk 0:00:17]}  Qc5 {[%clk 0:00:03]} 32. Rxe5 {[%clk 0:00:11]}  Qc4 {[%clk 0:00:00]} 33. Nxd8 {[%clk 0:00:09]} 1-0


[Site "https://www.chess.com"]

[Event "Titled Tuesday Blitz May 30 Early 2023"]
[White "Zenin, Dmitry"]
[Black "Kiseljova, Marya"]
[WhiteFideId "4127897"]
[BlackFideId "4155009"]
[WhiteElo "2215"]
[BlackElo "1831"]
[Result "1-0"]
[Round "03"]
[TimeControl "180+2"]
[Date "2023.05.30"]
[WhiteClock "0:00:41"]
[BlackClock "0:00:14"]

1. d4 {[%clk 0:03:00]}  Nf6 {[%clk 0:02:59]} 2. c4 {[%clk 0:02:57]}  e6 {[%clk 0:02:58]} 3. Nc3 {[%clk 0:02:57]}  Bb4 {[%clk 0:02:58]} 4. Qc2 {[%clk 0:02:57]}  b6 {[%clk 0:02:57]} 5. e4 {[%clk 0:02:57]}  Bb7 {[%clk 0:02:26]} 6. Bd3 {[%clk 0:02:55]}  d5 {[%clk 0:02:04]} 7. e5 {[%clk 0:02:53]}  Ne4 {[%clk 0:01:57]} 8. Ne2 {[%clk 0:02:41]}  Nxc3 {[%clk 0:01:47]} 9. bxc3 {[%clk 0:02:40]}  Be7 {[%clk 0:01:46]} 10. O-O {[%clk 0:02:35]}  c5 {[%clk 0:01:36]} 11. f4 {[%clk 0:02:00]}  Nc6 {[%clk 0:01:26]} 12. cxd5 {[%clk 0:01:53]}  Qxd5 {[%clk 0:01:26]} 13. Be4 {[%clk 0:01:48]}  Qd7 {[%clk 0:01:24]} 14. Be3 {[%clk 0:01:46]}  Rc8 {[%clk 0:01:16]} 15. dxc5 {[%clk 0:01:45]}  bxc5 {[%clk 0:01:08]} 16. Rfd1 {[%clk 0:01:33]}  Qc7 {[%clk 0:01:08]} 17. Rab1 {[%clk 0:01:31]}  h6 {[%clk 0:01:04]} 18. Ng3 {[%clk 0:01:22]}  O-O {[%clk 0:01:02]} 19. Qa4 {[%clk 0:01:16]}  Ba8 {[%clk 0:00:46]} 20. Rb5 {[%clk 0:01:06]}  Nb8 {[%clk 0:00:19]} 21. Bxa8 {[%clk 0:01:01]}  Rfd8 {[%clk 0:00:17]} 22. Rdb1 {[%clk 0:00:51]}  Nd7 {[%clk 0:00:16]} 23. Rb7 {[%clk 0:00:46]}  Qc6 {[%clk 0:00:14]} 24. Qxc6 {[%clk 0:00:46]}  Rxc6 {[%clk 0:00:15]} 25. Rxd7 {[%clk 0:00:44]}  Rxd7 {[%clk 0:00:14]} 26. Bxc6 {[%clk 0:00:41]}  Rc7 {[%clk 0:00:14]} 1-0


[Site "https://www.chess.com"]

[Event "Titled Tuesday Blitz May 30 Early 2023"]
[White "KSho99"]
[Black "Sargissyan, Sargis"]
[BlackFideId "13303210"]
[WhiteElo "2173"]
[BlackElo "2109"]
[Result "1-0"]
[Round "03"]
[TimeControl "180+2"]
[Date "2023.05.30"]
[WhiteClock "0:00:03"]
[BlackClock "0:00:04"]

1. Nf3 {[%clk 0:03:00]}  Nf6 {[%clk 0:02:59]} 2. b3 {[%clk 0:03:01]}  g6 {[%clk 0:02:59]} 3. Bb2 {[%clk 0:03:01]}  Bg7 {[%clk 0:03:00]} 4. e3 {[%clk 0:03:02]}  O-O {[%clk 0:03:01]} 5. d4 {[%clk 0:03:02]}  b6 {[%clk 0:02:55]} 6. Be2 {[%clk 0:03:00]}  Bb7 {[%clk 0:02:56]} 7. O-O {[%clk 0:03:00]}  e6 {[%clk 0:02:53]} 8. c4 {[%clk 0:02:59]}  c5 {[%clk 0:02:53]} 9. Nc3 {[%clk 0:02:54]}  cxd4 {[%clk 0:02:52]} 10. Nxd4 {[%clk 0:02:51]}  d5 {[%clk 0:02:53]} 11. Bf3 {[%clk 0:02:42]}  Nbd7 {[%clk 0:02:51]} 12. cxd5 {[%clk 0:02:40]}  exd5 {[%clk 0:02:50]} 13. Ndb5 {[%clk 0:02:21]}  Ne5 {[%clk 0:02:45]} 14. Be2 {[%clk 0:02:16]}  a6 {[%clk 0:02:41]} 15. Nd4 {[%clk 0:02:15]}  Ne4 {[%clk 0:02:27]} 16. Rc1 {[%clk 0:02:09]}  Rc8 {[%clk 0:02:15]} 17. Nxe4 {[%clk 0:01:51]}  dxe4 {[%clk 0:02:02]} 18. Ba3 {[%clk 0:01:47]}  Re8 {[%clk 0:02:00]} 19. Rxc8 {[%clk 0:01:43]}  Bxc8 {[%clk 0:01:59]} 20. Qc2 {[%clk 0:01:33]}  Bf5 {[%clk 0:01:34]} 21. Nxf5 {[%clk 0:01:23]}  gxf5 {[%clk 0:01:33]} 22. Rd1 {[%clk 0:01:23]}  Qg5 {[%clk 0:01:30]} 23. Bd6 {[%clk 0:00:45]}  h6 {[%clk 0:00:52]} 24. Bxa6 {[%clk 0:00:34]}  Re6 {[%clk 0:00:39]} 25. Bxe5 {[%clk 0:00:14]}  Bxe5 {[%clk 0:00:37]} 26. g3 {[%clk 0:00:13]}  h5 {[%clk 0:00:32]} 27. Qc8+ {[%clk 0:00:09]}  Kg7 {[%clk 0:00:28]} 28. Bc4 {[%clk 0:00:07]}  Re7 {[%clk 0:00:13]} 29. Rd8 {[%clk 0:00:06]}  Kh7 {[%clk 0:00:12]} 30. Rf8 {[%clk 0:00:02]}  h4 {[%clk 0:00:11]} 31. Bxf7 {[%clk 0:00:01]}  hxg3 {[%clk 0:00:12]} 32. hxg3 {[%clk 0:00:01]}  Bxg3 {[%clk 0:00:11]} 33. Rh8+ {[%clk 0:00:02]}  Kg7 {[%clk 0:00:09]} 34. Rg8+ {[%clk 0:00:02]}  Kxf7 {[%clk 0:00:04]} 35. Rxg5 {[%clk 0:00:03]} 1-0


[Site "https://www.chess.com"]